[Event "Early-Titled-Tuesday-Blitz-February-13-2024"]
[Site "Chess.com"]
[Date "2024.02.13"]
[Round "1"]
[White "Der_Balak_3Halak"]
[Black "alexrustemov"]
[Result "1/2-1/2"]
[WhiteElo "2457"]
[BlackElo "2810"]
[TimeControl "180+1"]
[EndTime "8:10:08 PST"]
[Termination "Game drawn by repetition"]

1. e4 {[%clk 0:03:00.9]} 1... e6 {[%clk 0:03:00.1]} 2. d4 {[%clk 0:03:00.8]}
2... d5 {[%clk 0:03:00.6]} 3. Nd2 {[%clk 0:02:51.5]} 3... dxe4 {[%clk
0:03:00.5]} 4. Nxe4 {[%clk 0:02:52.4]} 4... Bd7 {[%clk 0:03:01]} 5. Nf3 {[%clk
0:02:50.6]} 5... Bc6 {[%clk 0:03:01.5]} 6. Bd3 {[%clk 0:02:45.9]} 6... Nd7
{[%clk 0:03:01.8]} 7. O-O {[%clk 0:02:42.3]} 7... Ngf6 {[%clk 0:03:02.3]} 8. Qe2
{[%clk 0:02:32.8]} 8... Nxe4 {[%clk 0:03:01]} 9. Bxe4 {[%clk 0:02:33.7]} 9...
Bxe4 {[%clk 0:03:01.4]} 10. Qxe4 {[%clk 0:02:34.6]} 10... c6 {[%clk 0:03:01.9]}
11. Bf4 {[%clk 0:02:26.8]} 11... Be7 {[%clk 0:03:01]} 12. Rad1 {[%clk
0:02:20.8]} 12... O-O {[%clk 0:03:01.3]} 13. Bg3 {[%clk 0:02:18]} 13... Qa5
{[%clk 0:02:55.9]} 14. a3 {[%clk 0:02:13.6]} 14... Rad8 {[%clk 0:02:51.8]} 15.
c4 {[%clk 0:02:08.8]} 15... Rfe8 {[%clk 0:02:48.7]} 16. Ne5 {[%clk 0:02:02.8]}
16... Nxe5 {[%clk 0:02:42.2]} 17. dxe5 {[%clk 0:01:59.6]} 17... Qa4 {[%clk
0:02:27.7]} 18. Qe2 {[%clk 0:01:59.4]} 18... Qb3 {[%clk 0:02:21.5]} 19. Rc1
{[%clk 0:01:34]} 19... Rd3 {[%clk 0:02:14.8]} 20. Qc2 {[%clk 0:01:32.5]} 20...
Red8 {[%clk 0:02:09.8]} 21. Qxb3 {[%clk 0:01:28.5]} 21... Rxb3 {[%clk
0:02:10.7]} 22. Rc2 {[%clk 0:01:29.1]} 22... Bc5 {[%clk 0:02:05.1]} 23. Bf4
{[%clk 0:01:23.4]} 23... a5 {[%clk 0:01:57.4]} 24. h3 {[%clk 0:00:55.4]} 24...
a4 {[%clk 0:01:56.7]} 25. Re1 {[%clk 0:00:51.5]} 25... h6 {[%clk 0:01:52]} 26.
Be3 {[%clk 0:00:50.9]} 26... Bxe3 {[%clk 0:01:49.3]} 27. Rxe3 {[%clk 0:00:51.8]}
27... Rxe3 {[%clk 0:01:48.3]} 28. fxe3 {[%clk 0:00:52.7]} 28... Rd1+ {[%clk
0:01:40.3]} 29. Kf2 {[%clk 0:00:52.7]} 29... Rb1 {[%clk 0:01:40.8]} 30. Kf3
{[%clk 0:00:36.3]} 30... Kf8 {[%clk 0:01:40.4]} 31. Ke4 {[%clk 0:00:36.9]} 31...
Ke7 {[%clk 0:01:40.5]} 32. Kd4 {[%clk 0:00:37.1]} 32... b6 {[%clk 0:01:39.1]}
33. Ke4 {[%clk 0:00:37.3]} 33... Rd1 {[%clk 0:01:27.7]} 34. Kf4 {[%clk
0:00:34.1]} 34... Rd3 {[%clk 0:01:20.7]} 35. Ke4 {[%clk 0:00:32.4]} 35... Rb3
{[%clk 0:01:20.6]} 36. Rd2 {[%clk 0:00:29.7]} 36... b5 {[%clk 0:01:16.7]} 37.
cxb5 {[%clk 0:00:29.4]} 37... cxb5 {[%clk 0:01:17]} 38. Rc2 {[%clk 0:00:29]}
38... Kd7 {[%clk 0:01:06.1]} 39. Rd2+ {[%clk 0:00:26.7]} 39... Kc6 {[%clk
0:01:04.4]} 40. Rc2+ {[%clk 0:00:27.6]} 40... Kd7 {[%clk 0:01:01.9]} 41. Rd2+
{[%clk 0:00:27.7]} 41... Ke7 {[%clk 0:01:02.5]} 42. Rc2 {[%clk 0:00:28.4]} 42...
g6 {[%clk 0:01:02.2]} 43. Rc7+ {[%clk 0:00:27.2]} 43... Kf8 {[%clk 0:01:02.3]}
44. Rc2 {[%clk 0:00:27.2]} 44... h5 {[%clk 0:01:01.5]} 45. Kf4 {[%clk
0:00:27.5]} 45... Kg7 {[%clk 0:01:00.5]} 46. g4 {[%clk 0:00:26.4]} 46... hxg4
{[%clk 0:00:48.2]} 47. hxg4 {[%clk 0:00:27.3]} 47... b4 {[%clk 0:00:48.1]} 48.
axb4 {[%clk 0:00:28.1]} 48... Rxb4+ {[%clk 0:00:48.5]} 49. Kf3 {[%clk
0:00:28.9]} 49... g5 {[%clk 0:00:45.1]} 50. Rd2 {[%clk 0:00:22.1]} 50... Kg6
{[%clk 0:00:44.2]} 51. Rd4 {[%clk 0:00:22.8]} 51... Rxb2 {[%clk 0:00:39.2]} 52.
Rxa4 {[%clk 0:00:22.7]} 52... Rb5 {[%clk 0:00:39.7]} 53. Ke4 {[%clk 0:00:21.6]}
53... Rb1 {[%clk 0:00:39]} 54. Ra8 {[%clk 0:00:20.3]} 54... Kg7 {[%clk
0:00:37.6]} 55. Kf3 {[%clk 0:00:18.7]} 55... Rf1+ {[%clk 0:00:37.2]} 56. Kg3
{[%clk 0:00:18.2]} 56... Rd1 {[%clk 0:00:36.9]} 57. Ra5 {[%clk 0:00:17.4]} 57...
Kf8 {[%clk 0:00:33.7]} 58. Kf3 {[%clk 0:00:17.9]} 58... Ke7 {[%clk 0:00:33.7]}
59. Ra7+ {[%clk 0:00:17.5]} 59... Rd7 {[%clk 0:00:33.9]} 60. Ra8 {[%clk
0:00:18.4]} 60... Rd5 {[%clk 0:00:32.4]} 61. Ke4 {[%clk 0:00:17.7]} 61... Rb5
{[%clk 0:00:32.5]} 62. Ra7+ {[%clk 0:00:18]} 62... Kf8 {[%clk 0:00:32.3]} 63.
Ra8+ {[%clk 0:00:18.7]} 63... Kg7 {[%clk 0:00:32.5]} 64. Ra4 {[%clk 0:00:18.9]}
64... Rb1 {[%clk 0:00:31.5]} 65. Kf3 {[%clk 0:00:19.1]} 65... Rf1+ {[%clk
0:00:30.7]} 66. Ke4 {[%clk 0:00:19.7]} 66... Kg6 {[%clk 0:00:30.5]} 67. Ra8
{[%clk 0:00:19.2]} 67... Rg1 {[%clk 0:00:30.3]} 68. Rg8+ {[%clk 0:00:18.9]}
68... Kh6 {[%clk 0:00:30.7]} 69. Kf3 {[%clk 0:00:18.3]} 69... Rf1+ {[%clk
0:00:30.2]} 70. Ke4 {[%clk 0:00:18.1]} 70... Rf2 {[%clk 0:00:29.5]} 71. Rh8+
{[%clk 0:00:14.7]} 71... Kg7 {[%clk 0:00:29.1]} 72. Rh5 {[%clk 0:00:15.1]} 72...
Kg6 {[%clk 0:00:29.3]} 73. Rh8 {[%clk 0:00:15.8]} 73... Ra2 {[%clk 0:00:29.4]}
74. Rg8+ {[%clk 0:00:15.9]} 74... Kh7 {[%clk 0:00:29.5]} 75. Rxg5 {[%clk
0:00:15.4]} 75... Ra4+ {[%clk 0:00:29.1]} 76. Kf3 {[%clk 0:00:16]} 76... Ra5
{[%clk 0:00:28.2]} 77. Kf4 {[%clk 0:00:15.7]} 77... Ra4+ {[%clk 0:00:27.7]} 78.
e4 {[%clk 0:00:16.1]} 78... Ra1 {[%clk 0:00:27.7]} 79. Rh5+ {[%clk 0:00:16.5]}
79... Kg6 {[%clk 0:00:27.9]} 80. Rh3 {[%clk 0:00:16]} 80... Rf1+ {[%clk
0:00:27.8]} 81. Rf3 {[%clk 0:00:16.7]} 81... Ra1 {[%clk 0:00:27.5]} 82. Kg3
{[%clk 0:00:15.2]} 82... Re1 {[%clk 0:00:26.5]} 83. Rf4 {[%clk 0:00:11.2]} 83...
Re3+ {[%clk 0:00:26.3]} 84. Kf2 {[%clk 0:00:10.3]} 84... Ra3 {[%clk 0:00:26.6]}
85. Rf3 {[%clk 0:00:10.5]} 85... Ra5 {[%clk 0:00:26.2]} 86. Ke3 {[%clk
0:00:10.1]} 86... Rxe5 {[%clk 0:00:26.6]} 87. Kf4 {[%clk 0:00:10.8]} 87... Ra5
{[%clk 0:00:26.7]} 88. Rd3 {[%clk 0:00:10.4]} 88... f6 {[%clk 0:00:25.7]} 89.
Kf3 {[%clk 0:00:10]} 89... Kg5 {[%clk 0:00:24.3]} 90. Rc3 {[%clk 0:00:08]} 90...
Ra4 {[%clk 0:00:24.3]} 91. Rc5+ {[%clk 0:00:08.1]} 91... e5 {[%clk 0:00:24.2]}
92. Rc3 {[%clk 0:00:08.8]} 92... Ra1 {[%clk 0:00:24.3]} 93. Rc8 {[%clk
0:00:06.5]} 93... Rf1+ {[%clk 0:00:24.1]} 94. Ke2 {[%clk 0:00:06.6]} 94... Rf4
{[%clk 0:00:24.8]} 95. Ke3 {[%clk 0:00:06.2]} 95... Rxg4 {[%clk 0:00:23.4]} 96.
Rg8+ {[%clk 0:00:06.9]} 96... Kh4 {[%clk 0:00:23.8]} 97. Rf8 {[%clk 0:00:06.5]}
97... Rg3+ {[%clk 0:00:24.2]} 98. Kf2 {[%clk 0:00:05.9]} 98... Rg6 {[%clk
0:00:24]} 99. Kf3 {[%clk 0:00:06.3]} 99... Kg5 {[%clk 0:00:24]} 100. Rh8 {[%clk
0:00:06.4]} 100... Rh6 {[%clk 0:00:24.2]} 101. Rg8+ {[%clk 0:00:06.3]} 101...
Rg6 {[%clk 0:00:23.4]} 102. Rxg6+ {[%clk 0:00:04.5]} 102... Kxg6 {[%clk
0:00:23.6]} 103. Kg4 {[%clk 0:00:05.4]} 103... Kf7 {[%clk 0:00:24]} 104. Kf3
{[%clk 0:00:04.8]} 104... Ke7 {[%clk 0:00:24.2]} 105. Ke3 {[%clk 0:00:05]}
105... Kd6 {[%clk 0:00:24.6]} 106. Kd2 {[%clk 0:00:04.8]} 106... Kc6 {[%clk
0:00:23.8]} 107. Kc2 {[%clk 0:00:04.9]} 107... Kb5 {[%clk 0:00:23.7]} 108. Kb3
{[%clk 0:00:05.4]} 108... Kc5 {[%clk 0:00:23.6]} 109. Kc3 {[%clk 0:00:05.9]}
109... Kd6 {[%clk 0:00:24]} 110. Kd2 {[%clk 0:00:06]} 110... Ke6 {[%clk
0:00:24.6]} 111. Ke2 {[%clk 0:00:06]} 111... Kf7 {[%clk 0:00:25.5]} 112. Kf3
{[%clk 0:00:06.2]} 112... Kg7 {[%clk 0:00:25.3]} 113. Kg3 {[%clk 0:00:06.9]}
113... Kh6 {[%clk 0:00:25.1]} 114. Kh4 {[%clk 0:00:07.3]} 114... Kg6 {[%clk
0:00:25.3]} 115. Kg4 {[%clk 0:00:07.8]} 115... Kf7 {[%clk 0:00:25.9]} 116. Kf3
{[%clk 0:00:08.3]} 1/2-1/2

[Event "Early-Titled-Tuesday-Blitz-February-13-2024"]
[Site "Chess.com"]
[Date "2024.02.13"]
[Round "1"]
[White "RobertoJBM"]
[Black "Juicy_Fork"]
[Result "1-0"]
[WhiteElo "2811"]
[BlackElo "2447"]
[TimeControl "180+1"]
[EndTime "8:11:14 PST"]
[Termination "RobertoJBM won by resignation"]

1. d4 {[%clk 0:02:52.7]} 1... Nf6 {[%clk 0:03:00]} 2. Nf3 {[%clk 0:02:50.7]}
2... g6 {[%clk 0:03:00.1]} 3. e3 {[%clk 0:02:51.6]} 3... Bg7 {[%clk 0:03:00.1]}
4. Be2 {[%clk 0:02:49.6]} 4... O-O {[%clk 0:03:00]} 5. O-O {[%clk 0:02:50.5]}
5... d6 {[%clk 0:02:58.6]} 6. c4 {[%clk 0:02:49.9]} 6... Nbd7 {[%clk 0:02:54.3]}
7. Nc3 {[%clk 0:02:48.8]} 7... e5 {[%clk 0:02:48.1]} 8. b3 {[%clk 0:02:48.3]}
8... Qe7 {[%clk 0:02:40.5]} 9. Bb2 {[%clk 0:02:45.9]} 9... e4 {[%clk 0:01:52.9]}
10. Nd2 {[%clk 0:02:44]} 10... c6 {[%clk 0:01:53.1]} 11. Qc2 {[%clk 0:02:21.2]}
11... Re8 {[%clk 0:01:50.6]} 12. Rae1 {[%clk 0:02:20.3]} 12... h5 {[%clk
0:01:45.2]} 13. Qb1 {[%clk 0:02:18.7]} 13... a5 {[%clk 0:01:43.4]} 14. Bd1
{[%clk 0:02:17.8]} 14... Nf8 {[%clk 0:01:37.7]} 15. Bc2 {[%clk 0:02:15.2]} 15...
Bf5 {[%clk 0:01:37.4]} 16. f3 {[%clk 0:02:14.1]} 16... d5 {[%clk 0:00:56]} 17.
fxe4 {[%clk 0:02:07.4]} 17... dxe4 {[%clk 0:00:50.8]} 18. d5 {[%clk 0:01:51.6]}
18... Rad8 {[%clk 0:00:50.5]} 19. Re2 {[%clk 0:01:48.1]} 19... cxd5 {[%clk
0:00:48.5]} 20. cxd5 {[%clk 0:01:46.6]} 20... Nxd5 {[%clk 0:00:43.2]} 21. Nxd5
{[%clk 0:01:32.9]} 21... Rxd5 {[%clk 0:00:42]} 22. Bxg7 {[%clk 0:01:32.5]} 22...
Kxg7 {[%clk 0:00:42.4]} 23. Qe1 {[%clk 0:00:58]} 23... h4 {[%clk 0:00:41.2]} 24.
h3 {[%clk 0:00:50.7]} 24... Qg5 {[%clk 0:00:40.7]} 25. Rf4 {[%clk 0:00:35.6]}
25... Red8 {[%clk 0:00:15.4]} 26. Nxe4 {[%clk 0:00:21.7]} 26... Bxe4 {[%clk
0:00:15.6]} 27. Rxe4 {[%clk 0:00:22.6]} 27... Ne6 {[%clk 0:00:12.4]} 28. Qxh4
{[%clk 0:00:21.1]} 28... Qxh4 {[%clk 0:00:12.8]} 29. Rxh4 {[%clk 0:00:22]} 29...
Rd2 {[%clk 0:00:13.4]} 30. Kf2 {[%clk 0:00:20.4]} 30... Nc5 {[%clk 0:00:12.4]}
31. Rc4 {[%clk 0:00:18.7]} 31... Nd3+ {[%clk 0:00:11.2]} 32. Bxd3 {[%clk
0:00:18.6]} 32... R8xd3 {[%clk 0:00:09.3]} 33. Rc2 {[%clk 0:00:17]} 33... Rd1
{[%clk 0:00:09]} 34. Rc7 {[%clk 0:00:15.5]} 34... b5 {[%clk 0:00:07]} 35. Rc5
{[%clk 0:00:15.4]} 35... Rd5 {[%clk 0:00:06.2]} 36. Rxd5 {[%clk 0:00:15.5]}
36... Rxd5 {[%clk 0:00:07.1]} 37. e4 {[%clk 0:00:13.5]} 37... Rd3 {[%clk
0:00:07.4]} 38. Rc2 {[%clk 0:00:12.4]} 38... Kf6 {[%clk 0:00:06.1]} 39. h4
{[%clk 0:00:10.1]} 39... Ke5 {[%clk 0:00:06.2]} 40. Rc5+ {[%clk 0:00:09.8]}
40... Kxe4 {[%clk 0:00:05.4]} 41. Rxb5 {[%clk 0:00:10.3]} 41... Rd2+ {[%clk
0:00:06]} 42. Kg3 {[%clk 0:00:10.9]} 42... Rxa2 {[%clk 0:00:06.9]} 43. Rb7
{[%clk 0:00:11]} 43... Ra3 {[%clk 0:00:06.8]} 44. Kg4 {[%clk 0:00:10.6]} 44...
f6 {[%clk 0:00:07.1]} 45. Rb6 {[%clk 0:00:08.5]} 45... Ke5 {[%clk 0:00:06.7]}
46. g3 {[%clk 0:00:06.4]} 46... a4 {[%clk 0:00:05.5]} 47. Rb5+ {[%clk
0:00:06.2]} 47... Ke6 {[%clk 0:00:04]} 48. Rb6+ {[%clk 0:00:06.3]} 48... Ke5
{[%clk 0:00:04.3]} 49. b4 {[%clk 0:00:05.8]} 49... Rb3 {[%clk 0:00:04.5]} 50.
Kh3 {[%clk 0:00:05.8]} 50... a3 {[%clk 0:00:04.7]} 51. Ra6 {[%clk 0:00:06]}
51... Kf5 {[%clk 0:00:03.6]} 52. b5 {[%clk 0:00:05.9]} 52... Rxb5 {[%clk
0:00:03.4]} 53. Rxa3 {[%clk 0:00:06.1]} 53... Ke6 {[%clk 0:00:04.3]} 54. Re3+
{[%clk 0:00:05.9]} 54... Re5 {[%clk 0:00:04.6]} 55. Rd3 {[%clk 0:00:06.3]} 55...
f5 {[%clk 0:00:04.6]} 56. Kg2 {[%clk 0:00:06.2]} 56... Kf6 {[%clk 0:00:05.2]}
57. Kf3 {[%clk 0:00:06.7]} 57... Re6 {[%clk 0:00:05.8]} 58. Rd5 {[%clk
0:00:06.8]} 58... Rc6 {[%clk 0:00:05.9]} 59. Rd3 {[%clk 0:00:06.7]} 59... Ke6
{[%clk 0:00:06.4]} 60. Kf4 {[%clk 0:00:06.9]} 60... Kf6 {[%clk 0:00:06.9]} 61.
Rd4 {[%clk 0:00:06.7]} 61... Rb6 {[%clk 0:00:07.1]} 62. Rc4 {[%clk 0:00:07.1]}
62... Ra6 {[%clk 0:00:07.3]} 63. Kf3 {[%clk 0:00:07.1]} 63... Re6 {[%clk
0:00:07.6]} 64. Rc8 {[%clk 0:00:06.8]} 64... Rd6 {[%clk 0:00:07.5]} 65. Rh8
{[%clk 0:00:07.1]} 65... Rd3+ {[%clk 0:00:07.5]} 66. Kg2 {[%clk 0:00:06.8]}
66... Ke5 {[%clk 0:00:06.1]} 67. Rf8 {[%clk 0:00:06.1]} 67... Rb3 {[%clk
0:00:05.5]} 68. Kf2 {[%clk 0:00:06.1]} 68... Ke6 {[%clk 0:00:05.6]} 69. Rg8
{[%clk 0:00:05.7]} 69... Kf7 {[%clk 0:00:05.7]} 70. Rd8 {[%clk 0:00:06]} 70...
Kf6 {[%clk 0:00:06.2]} 71. Rd4 {[%clk 0:00:05.9]} 71... Rc3 {[%clk 0:00:06.2]}
72. Rd2 {[%clk 0:00:05.5]} 72... Ra3 {[%clk 0:00:06.2]} 73. Re2 {[%clk
0:00:05.9]} 73... Rb3 {[%clk 0:00:06.1]} 74. Re3 {[%clk 0:00:05.9]} 74... Rb2+
{[%clk 0:00:05.2]} 75. Kf3 {[%clk 0:00:06.1]} 75... Rb4 {[%clk 0:00:05.8]} 76.
Rd3 {[%clk 0:00:06.4]} 76... Ra4 {[%clk 0:00:06]} 77. Rc3 {[%clk 0:00:06.7]}
77... Rd4 {[%clk 0:00:05.6]} 78. Rc6+ {[%clk 0:00:06.6]} 78... Kf7 {[%clk
0:00:05.7]} 79. Rc5 {[%clk 0:00:07.5]} 79... Rb4 {[%clk 0:00:04.8]} 80. Kg2
{[%clk 0:00:05.7]} 80... Kf6 {[%clk 0:00:04.7]} 81. Kh3 {[%clk 0:00:05.9]} 81...
Rb3 {[%clk 0:00:04.7]} 82. Rc6+ {[%clk 0:00:06.2]} 82... Kf7 {[%clk 0:00:05]}
83. Rc4 {[%clk 0:00:06.8]} 83... Kf6 {[%clk 0:00:05.3]} 84. Kh2 {[%clk 0:00:07]}
84... Rb2+ {[%clk 0:00:05.2]} 85. Kg1 {[%clk 0:00:06.9]} 85... Rb3 {[%clk
0:00:05.5]} 86. Kf2 {[%clk 0:00:07]} 86... Rb2+ {[%clk 0:00:06]} 87. Kf3 {[%clk
0:00:07.3]} 87... Rb3+ {[%clk 0:00:06.5]} 88. Kg2 {[%clk 0:00:07.8]} 88... Ra3
{[%clk 0:00:06.3]} 89. Rf4 {[%clk 0:00:07.2]} 89... Ke5 {[%clk 0:00:05.6]} 90.
Rb4 {[%clk 0:00:07.3]} 90... Kf6 {[%clk 0:00:05.8]} 91. Kh3 {[%clk 0:00:06.4]}
91... Rc3 {[%clk 0:00:05.6]} 92. Rb6+ {[%clk 0:00:06.4]} 92... Kf7 {[%clk
0:00:05.7]} 93. Kh2 {[%clk 0:00:06.8]} 93... Rc2+ {[%clk 0:00:05.6]} 94. Kh3
{[%clk 0:00:07.3]} 94... Rc3 {[%clk 0:00:06]} 95. Rb4 {[%clk 0:00:06.7]} 95...
Kf6 {[%clk 0:00:06.2]} 96. Ra4 {[%clk 0:00:07.1]} 96... Kf7 {[%clk 0:00:06.2]}
97. Kg2 {[%clk 0:00:07.4]} 97... Rb3 {[%clk 0:00:06.2]} 98. Rf4 {[%clk 0:00:07]}
98... Kf6 {[%clk 0:00:05.2]} 99. Rc4 {[%clk 0:00:06.8]} 99... Ra3 {[%clk
0:00:04.6]} 100. Rc6+ {[%clk 0:00:06.6]} 100... Kf7 {[%clk 0:00:04.9]} 101. Rc8
{[%clk 0:00:07.3]} 101... Rb3 {[%clk 0:00:04.4]} 102. Rc7+ {[%clk 0:00:07.1]}
102... Kf6 {[%clk 0:00:04.7]} 103. Rh7 {[%clk 0:00:07.2]} 103... Ra3 {[%clk
0:00:04.8]} 104. h5 {[%clk 0:00:07.2]} 104... gxh5 {[%clk 0:00:04.6]} 105. Rxh5
{[%clk 0:00:08.1]} 105... Kg6 {[%clk 0:00:05.3]} 106. Rh8 {[%clk 0:00:08.2]}
106... Ra2+ {[%clk 0:00:05.5]} 107. Kh3 {[%clk 0:00:08.7]} 107... Ra3 {[%clk
0:00:05.7]} 108. Rf8 {[%clk 0:00:08.2]} 108... Kg5 {[%clk 0:00:05.1]} 109. Rg8+
{[%clk 0:00:08.3]} 109... Kf6 {[%clk 0:00:05.7]} 110. Kh4 {[%clk 0:00:08.9]}
110... Ra4+ {[%clk 0:00:05.3]} 111. Kh5 {[%clk 0:00:09.2]} 111... Ra1 {[%clk
0:00:05.7]} 112. Rf8+ {[%clk 0:00:09.1]} 112... Ke6 {[%clk 0:00:05.1]} 113. Kg5
{[%clk 0:00:08.4]} 113... Rg1 {[%clk 0:00:05.1]} 114. Re8+ {[%clk 0:00:07.1]}
114... Kf7 {[%clk 0:00:04.5]} 115. Re3 {[%clk 0:00:06.7]} 115... Rf1 {[%clk
0:00:04.9]} 116. Re5 {[%clk 0:00:06.4]} 116... Rf3 {[%clk 0:00:03.6]} 117. Rxf5+
{[%clk 0:00:06.7]} 117... Rxf5+ {[%clk 0:00:03.3]} 118. Kxf5 {[%clk 0:00:07.6]}
118... Kg7 {[%clk 0:00:02.5]} 119. Kg5 {[%clk 0:00:07.6]} 119... Kh7 {[%clk
0:00:02.8]} 120. Kf6 {[%clk 0:00:07.8]} 120... Kh8 {[%clk 0:00:02.5]} 121. Kg6
{[%clk 0:00:07.3]} 121... Kg8 {[%clk 0:00:02.4]} 122. g4 {[%clk 0:00:07.9]}
122... Kh8 {[%clk 0:00:03.3]} 123. g5 {[%clk 0:00:07.6]} 123... Kg8 {[%clk
0:00:03.9]} 124. Kh6 {[%clk 0:00:08.2]} 124... Kh8 {[%clk 0:00:04.2]} 125. g6
{[%clk 0:00:08.7]} 125... Kg8 {[%clk 0:00:04.6]} 126. g7 {[%clk 0:00:09.4]}
126... Kf7 {[%clk 0:00:05.5]} 127. Kh7 {[%clk 0:00:10.3]} 127... Kf6 {[%clk
0:00:06.4]} 128. g8=Q {[%clk 0:00:11.2]} 128... Kf5 {[%clk 0:00:06.1]} 129. Qg3
{[%clk 0:00:11.3]} 1-0